[Event "Titled Tuesday Blitz August 3 2021"]
[White "Stribuk, Artiom"]
[Black "Makhnev, Denis"]
[WhiteFideId "13515659"]
[BlackFideId "13707647"]
[WhiteElo "2224"]
[BlackElo "2537"]
[Result "0-1"]
[Round "10"]
[TimeControl "180+1"]
[Date "2021.08.03"]
[WhiteClock "0:00:01"]
[BlackClock "0:00:14"]

1. d4 {[%clk 0:03:00]}  d5 {[%clk 0:03:00]} 2. c4 {[%clk 0:03:01]}  dxc4 {[%clk 0:03:00]} 3. e4 {[%clk 0:03:01]}  Nc6 {[%clk 0:03:00]} 4. Nf3 {[%clk 0:02:38]}  Bg4 {[%clk 0:02:59]} 5. Be3 {[%clk 0:02:38]}  e5 {[%clk 0:02:59]} 6. d5 {[%clk 0:02:36]}  Nce7 {[%clk 0:03:00]} 7. Nc3 {[%clk 0:02:34]}  Ng6 {[%clk 0:02:59]} 8. h3 {[%clk 0:02:28]}  Bd7 {[%clk 0:02:58]} 9. Bxc4 {[%clk 0:02:27]}  Bd6 {[%clk 0:02:56]} 10. Rc1 {[%clk 0:02:17]}  a6 {[%clk 0:02:56]} 11. a4 {[%clk 0:02:14]}  Nf6 {[%clk 0:02:55]} 12. O-O {[%clk 0:02:06]}  O-O {[%clk 0:02:55]} 13. Re1 {[%clk 0:02:05]}  Qe7 {[%clk 0:02:54]} 14. Bf1 {[%clk 0:02:04]}  h6 {[%clk 0:02:53]} 15. Qb3 {[%clk 0:01:59]}  Rfb8 {[%clk 0:02:42]} 16. Nd2 {[%clk 0:01:45]}  c6 {[%clk 0:02:36]} 17. Nc4 {[%clk 0:01:39]}  cxd5 {[%clk 0:02:36]} 18. Nxd5 {[%clk 0:01:28]}  Nxd5 {[%clk 0:02:35]} 19. exd5 {[%clk 0:01:29]}  b5 {[%clk 0:02:24]} 20. Nxd6 {[%clk 0:01:28]}  Qxd6 {[%clk 0:02:24]} 21. a5 {[%clk 0:01:29]}  Rc8 {[%clk 0:02:22]} 22. g3 {[%clk 0:01:24]}  Ne7 {[%clk 0:02:19]} 23. Bg2 {[%clk 0:01:22]}  Nf5 {[%clk 0:02:19]} 24. Bb6 {[%clk 0:01:17]}  f6 {[%clk 0:01:53]} 25. Rc6 {[%clk 0:01:04]}  Qf8 {[%clk 0:01:37]} 26. Rec1 {[%clk 0:00:59]}  Kh8 {[%clk 0:01:35]} 27. Rc7 {[%clk 0:00:57]}  Qd6 {[%clk 0:01:29]} 28. Qc3 {[%clk 0:00:50]}  Nd4 {[%clk 0:01:22]} 29. Rxc8+ {[%clk 0:00:35]}  Rxc8 {[%clk 0:01:21]} 30. Qxc8+ {[%clk 0:00:35]}  Bxc8 {[%clk 0:01:21]} 31. Rxc8+ {[%clk 0:00:36]}  Kh7 {[%clk 0:01:22]} 32. Rd8 {[%clk 0:00:35]}  Qb4 {[%clk 0:01:20]} 33. Be4+ {[%clk 0:00:22]}  f5 {[%clk 0:01:19]} 34. Bxd4 {[%clk 0:00:22]}  Qe1+ {[%clk 0:01:19]} 35. Kh2 {[%clk 0:00:22]}  Qxe4 {[%clk 0:01:16]} 36. Bb6 {[%clk 0:00:21]}  f4 {[%clk 0:01:11]} 37. d6 {[%clk 0:00:20]}  Qd3 {[%clk 0:00:57]} 38. gxf4 {[%clk 0:00:14]}  exf4 {[%clk 0:00:56]} 39. d7 {[%clk 0:00:15]}  Kg6 {[%clk 0:00:47]} 40. b4 {[%clk 0:00:09]}  Kh5 {[%clk 0:00:46]} 41. Bc5 {[%clk 0:00:05]}  g5 {[%clk 0:00:46]} 42. Kg2 {[%clk 0:00:04]}  Kh4 {[%clk 0:00:30]} 43. f3 {[%clk 0:00:05]}  Qd2+ {[%clk 0:00:30]} 44. Bf2+ {[%clk 0:00:05]}  Kh5 {[%clk 0:00:30]} 45. Kg1 {[%clk 0:00:05]}  Qd5 {[%clk 0:00:28]} 46. Kg2 {[%clk 0:00:05]}  Kg6 {[%clk 0:00:28]} 47. Kg1 {[%clk 0:00:03]}  Kh5 {[%clk 0:00:16]} 48. Kg2 {[%clk 0:00:03]}  Qd2 {[%clk 0:00:16]} 49. Kg1 {[%clk 0:00:04]}  Qd1+ {[%clk 0:00:17]} 50. Kg2 {[%clk 0:00:04]}  Qd6 {[%clk 0:00:17]} 51. Kg1 {[%clk 0:00:04]}  Qe7 {[%clk 0:00:16]} 52. Bb6 {[%clk 0:00:05]}  Qe2 {[%clk 0:00:14]} 53. Bf2 {[%clk 0:00:01]}  Qxf3 {[%clk 0:00:15]} 54. Bc5 {[%clk 0:00:01]}  Qxh3 {[%clk 0:00:14]} 0-1


[Site "https://www.chess.com"]

[Event "Titled Tuesday Blitz August 3 2021"]
[White "Timmermans, Mark"]
[Black "Perez Gormaz, Matias"]
[WhiteFideId "1026399"]
[BlackFideId "3406342"]
[WhiteElo "2460"]
[BlackElo "2414"]
[Result "1/2-1/2"]
[Round "10"]
[TimeControl "180+1"]
[Date "2021.08.03"]
[WhiteClock "0:00:37"]
[BlackClock "0:00:41"]

1. b4 {[%clk 0:03:00]}  d5 {[%clk 0:02:58]} 2. Bb2 {[%clk 0:02:49]}  Bg4 {[%clk 0:02:59]} 3. Nf3 {[%clk 0:02:49]}  Bxf3 {[%clk 0:02:59]} 4. exf3 {[%clk 0:02:50]}  Nf6 {[%clk 0:02:59]} 5. c4 {[%clk 0:02:50]}  e6 {[%clk 0:02:59]} 6. b5 {[%clk 0:02:50]}  g6 {[%clk 0:02:53]} 7. Be2 {[%clk 0:02:47]}  Bg7 {[%clk 0:02:53]} 8. O-O {[%clk 0:02:47]}  O-O {[%clk 0:02:54]} 9. a4 {[%clk 0:02:47]}  Nbd7 {[%clk 0:02:49]} 10. d4 {[%clk 0:02:45]}  dxc4 {[%clk 0:02:48]} 11. Bxc4 {[%clk 0:02:46]}  Nb6 {[%clk 0:02:48]} 12. Bd3 {[%clk 0:02:46]}  Nbd5 {[%clk 0:02:48]} 13. g3 {[%clk 0:02:46]}  Ne8 {[%clk 0:02:46]} 14. Nd2 {[%clk 0:02:46]}  Nb4 {[%clk 0:02:40]} 15. Be4 {[%clk 0:02:46]}  Nd6 {[%clk 0:02:38]} 16. Ba3 {[%clk 0:02:46]}  a5 {[%clk 0:02:35]} 17. bxa6 {[%clk 0:02:44]}  Nxa6 {[%clk 0:02:33]} 18. Bxd6 {[%clk 0:02:44]}  Qxd6 {[%clk 0:02:32]} 19. Bxb7 {[%clk 0:02:44]}  Ra7 {[%clk 0:02:32]} 20. Bxa6 {[%clk 0:02:42]}  Rxa6 {[%clk 0:02:27]} 21. Nb3 {[%clk 0:02:43]}  Rb8 {[%clk 0:02:26]} 22. a5 {[%clk 0:02:39]}  h5 {[%clk 0:02:26]} 23. Ra4 {[%clk 0:02:35]}  Qd5 {[%clk 0:02:22]} 24. Nc5 {[%clk 0:02:34]}  Rd6 {[%clk 0:02:12]} 25. a6 {[%clk 0:02:22]}  Bxd4 {[%clk 0:02:12]} 26. a7 {[%clk 0:02:22]}  Ra8 {[%clk 0:02:04]} 27. Ne4 {[%clk 0:02:20]}  Rdd8 {[%clk 0:01:57]} 28. Qc2 {[%clk 0:02:10]}  Qb7 {[%clk 0:01:09]} 29. Rb1 {[%clk 0:02:04]}  Bb6 {[%clk 0:01:00]} 30. Qb2 {[%clk 0:01:54]}  Rxa7 {[%clk 0:00:42]} 31. Nf6+ {[%clk 0:01:50]}  Kf8 {[%clk 0:00:42]} 32. Nh7+ {[%clk 0:01:39]}  Kg8 {[%clk 0:00:41]} 33. Nf6+ {[%clk 0:01:38]}  Kf8 {[%clk 0:00:41]} 34. Nh7+ {[%clk 0:00:37]}  Kg8 {[%clk 0:00:41]} 35. Nf6+ {[%clk 0:00:37]} 1/2-1/2


[Site "https://www.chess.com"]

[Event "Titled Tuesday Blitz August 3 2021"]
[White "Tsaruk, Maksim"]
[Black "Najdin, Danil"]
[WhiteFideId "13511173"]
[BlackFideId "4172426"]
[WhiteElo "2184"]
[BlackElo "2193"]
[Result "1-0"]
[Round "10"]
[TimeControl "180+1"]
[Date "2021.08.03"]
[WhiteClock "0:00:06"]
[BlackClock "0:00:02"]

1. Nf3 {[%clk 0:02:53]}  Nf6 {[%clk 0:02:59]} 2. d4 {[%clk 0:02:53]}  g6 {[%clk 0:03:00]} 3. c4 {[%clk 0:02:53]}  Bg7 {[%clk 0:03:00]} 4. g3 {[%clk 0:02:53]}  O-O {[%clk 0:03:00]} 5. Bg2 {[%clk 0:02:54]}  d6 {[%clk 0:03:00]} 6. O-O {[%clk 0:02:54]}  Nc6 {[%clk 0:03:01]} 7. Nc3 {[%clk 0:02:46]}  a6 {[%clk 0:03:01]} 8. h3 {[%clk 0:02:43]}  Rb8 {[%clk 0:02:57]} 9. d5 {[%clk 0:02:41]}  Na5 {[%clk 0:02:57]} 10. Nd2 {[%clk 0:02:40]}  c5 {[%clk 0:02:57]} 11. a4 {[%clk 0:02:29]}  Bd7 {[%clk 0:02:50]} 12. Qc2 {[%clk 0:02:28]}  e6 {[%clk 0:02:41]} 13. dxe6 {[%clk 0:02:23]}  Bxe6 {[%clk 0:02:40]} 14. b3 {[%clk 0:02:22]}  Nc6 {[%clk 0:02:40]} 15. Bb2 {[%clk 0:02:20]}  Nd4 {[%clk 0:02:37]} 16. Qd1 {[%clk 0:02:19]}  Qd7 {[%clk 0:02:37]} 17. Kh2 {[%clk 0:02:20]}  b5 {[%clk 0:02:37]} 18. axb5 {[%clk 0:02:18]}  axb5 {[%clk 0:02:37]} 19. e3 {[%clk 0:02:18]}  Nc6 {[%clk 0:02:20]} 20. Nxb5 {[%clk 0:02:16]}  Ng4+ {[%clk 0:02:16]} 21. hxg4 {[%clk 0:02:15]}  Bxb2 {[%clk 0:02:17]} 22. Ne4 {[%clk 0:02:02]}  f5 {[%clk 0:01:43]} 23. Nexd6 {[%clk 0:01:45]}  Bxa1 {[%clk 0:01:39]} 24. Qxa1 {[%clk 0:01:46]}  fxg4 {[%clk 0:01:37]} 25. Ne4 {[%clk 0:01:41]}  Qg7 {[%clk 0:01:28]} 26. Qxg7+ {[%clk 0:01:39]}  Kxg7 {[%clk 0:01:29]} 27. Nxc5 {[%clk 0:01:40]}  Nd8 {[%clk 0:01:24]} 28. Nd4 {[%clk 0:01:07]}  Bc8 {[%clk 0:01:21]} 29. Bd5 {[%clk 0:01:02]}  Rb6 {[%clk 0:01:20]} 30. Kg2 {[%clk 0:01:01]}  Rbf6 {[%clk 0:01:19]} 31. b4 {[%clk 0:01:01]}  Nf7 {[%clk 0:01:06]} 32. Nce6+ {[%clk 0:00:59]}  Bxe6 {[%clk 0:01:06]} 33. Nxe6+ {[%clk 0:01:00]}  Kg8 {[%clk 0:01:03]} 34. Nxf8 {[%clk 0:01:00]}  Kxf8 {[%clk 0:01:04]} 35. Bxf7 {[%clk 0:01:00]}  Kxf7 {[%clk 0:01:03]} 36. b5 {[%clk 0:01:01]}  Ke7 {[%clk 0:01:02]} 37. c5 {[%clk 0:01:01]}  Rf5 {[%clk 0:01:01]} 38. Rc1 {[%clk 0:01:00]}  Kd7 {[%clk 0:01:01]} 39. c6+ {[%clk 0:01:00]}  Kc8 {[%clk 0:01:00]} 40. b6 {[%clk 0:01:01]}  Rb5 {[%clk 0:00:56]} 41. b7+ {[%clk 0:01:01]}  Kc7 {[%clk 0:00:57]} 42. Rc4 {[%clk 0:00:43]}  h5 {[%clk 0:00:55]} 43. Kf1 {[%clk 0:00:40]}  Rb2 {[%clk 0:00:55]} 44. Ke1 {[%clk 0:00:40]}  g5 {[%clk 0:00:53]} 45. Rc5 {[%clk 0:00:40]}  h4 {[%clk 0:00:52]} 46. Rxg5 {[%clk 0:00:15]}  h3 {[%clk 0:00:44]} 47. Rg8 {[%clk 0:00:15]}  h2 {[%clk 0:00:42]} 48. Rc8+ {[%clk 0:00:15]}  Kd6 {[%clk 0:00:42]} 49. Rh8 {[%clk 0:00:16]}  Kxc6 {[%clk 0:00:19]} 50. Rxh2 {[%clk 0:00:14]}  Kxb7 {[%clk 0:00:19]} 51. Rh6 {[%clk 0:00:07]}  Kc7 {[%clk 0:00:18]} 52. Rf6 {[%clk 0:00:07]}  Rb5 {[%clk 0:00:13]} 53. Rf4 {[%clk 0:00:07]}  Rg5 {[%clk 0:00:14]} 54. Rd4 {[%clk 0:00:08]}  Kc6 {[%clk 0:00:14]} 55. Ke2 {[%clk 0:00:06]}  Kc5 {[%clk 0:00:14]} 56. Kd3 {[%clk 0:00:07]}  Rf5 {[%clk 0:00:13]} 57. Rf4 {[%clk 0:00:05]}  Rg5 {[%clk 0:00:14]} 58. Ke4 {[%clk 0:00:05]}  Rg8 {[%clk 0:00:13]} 59. Rf5+ {[%clk 0:00:05]}  Kc4 {[%clk 0:00:13]} 60. Kf4 {[%clk 0:00:05]}  Kd3 {[%clk 0:00:12]} 61. e4 {[%clk 0:00:04]}  Ke2 {[%clk 0:00:11]} 62. e5 {[%clk 0:00:03]}  Kxf2 {[%clk 0:00:10]} 63. e6 {[%clk 0:00:04]}  Kg2 {[%clk 0:00:05]} 64. e7 {[%clk 0:00:03]}  Re8 {[%clk 0:00:06]} 65. Rf7 {[%clk 0:00:04]}  Kh3 {[%clk 0:00:05]} 66. Rh7+ {[%clk 0:00:04]}  Kg2 {[%clk 0:00:06]} 67. Kxg4 {[%clk 0:00:05]}  Rg8+ {[%clk 0:00:06]} 68. Kf5 {[%clk 0:00:05]}  Kxg3 {[%clk 0:00:05]} 69. Ke6 {[%clk 0:00:06]}  Ra8 {[%clk 0:00:02]} 70. Kf7 {[%clk 0:00:06]} 1-0


[Site "https://www.chess.com"]

[Event "Titled Tuesday Blitz August 3 2021"]
[White "Vasquez Schroeder, Rodrigo"]
[Black "Piesik, Piotr"]
[WhiteFideId "3400042"]
[BlackFideId "1136194"]
[WhiteElo "2748"]
[BlackElo "2574"]
[Result "1-0"]
[Round "10"]
[TimeControl "180+1"]
[Date "2021.08.03"]
[WhiteClock "0:00:40"]
[BlackClock "0:00:27"]

1. e4 {[%clk 0:03:00]}  g6 {[%clk 0:02:57]} 2. d4 {[%clk 0:03:00]}  Bg7 {[%clk 0:02:57]} 3. Nf3 {[%clk 0:03:00]}  c6 {[%clk 0:02:58]} 4. Nc3 {[%clk 0:03:00]}  d6 {[%clk 0:02:58]} 5. a4 {[%clk 0:02:59]}  Nf6 {[%clk 0:02:58]} 6. h3 {[%clk 0:02:58]}  O-O {[%clk 0:02:58]} 7. Be3 {[%clk 0:02:56]}  Nbd7 {[%clk 0:02:58]} 8. a5 {[%clk 0:02:56]}  e5 {[%clk 0:02:58]} 9. dxe5 {[%clk 0:02:56]}  dxe5 {[%clk 0:02:58]} 10. Qd6 {[%clk 0:02:56]}  Re8 {[%clk 0:02:56]} 11. Bc4 {[%clk 0:02:55]}  Bf8 {[%clk 0:02:55]} 12. Qd3 {[%clk 0:02:53]}  Qc7 {[%clk 0:02:37]} 13. Ng5 {[%clk 0:02:44]}  Re7 {[%clk 0:02:37]} 14. b4 {[%clk 0:02:35]}  h6 {[%clk 0:02:37]} 15. Nf3 {[%clk 0:02:35]}  Re8 {[%clk 0:02:37]} 16. Rb1 {[%clk 0:02:33]}  b5 {[%clk 0:02:35]} 17. axb6 {[%clk 0:02:31]}  axb6 {[%clk 0:02:36]} 18. O-O {[%clk 0:02:29]}  b5 {[%clk 0:02:35]} 19. Bb3 {[%clk 0:02:26]}  Nb6 {[%clk 0:02:33]} 20. Ne2 {[%clk 0:02:19]}  Be6 {[%clk 0:02:32]} 21. Bxb6 {[%clk 0:02:13]}  Qxb6 {[%clk 0:02:31]} 22. Bxe6 {[%clk 0:02:11]}  Rxe6 {[%clk 0:02:31]} 23. c4 {[%clk 0:02:11]}  bxc4 {[%clk 0:02:30]} 24. Qxc4 {[%clk 0:02:12]}  Qb5 {[%clk 0:02:30]} 25. Rfc1 {[%clk 0:02:02]}  Rb8 {[%clk 0:02:18]} 26. Nd2 {[%clk 0:01:44]}  Bxb4 {[%clk 0:02:05]} 27. Nc3 {[%clk 0:01:31]}  Qxc4 {[%clk 0:02:02]} 28. Nxc4 {[%clk 0:01:32]}  Bd6 {[%clk 0:02:02]} 29. Rxb8+ {[%clk 0:01:28]}  Bxb8 {[%clk 0:02:02]} 30. Rb1 {[%clk 0:01:29]}  Bd6 {[%clk 0:01:59]} 31. f3 {[%clk 0:01:19]}  Bc5+ {[%clk 0:01:58]} 32. Kf1 {[%clk 0:01:19]}  Bd4 {[%clk 0:01:58]} 33. Na4 {[%clk 0:01:18]}  Nd7 {[%clk 0:01:54]} 34. Rb7 {[%clk 0:01:15]}  Nc5 {[%clk 0:01:53]} 35. Nxc5 {[%clk 0:01:11]}  Bxc5 {[%clk 0:01:54]} 36. Ke2 {[%clk 0:01:11]}  Bd4 {[%clk 0:01:51]} 37. Rd7 {[%clk 0:01:05]}  Re8 {[%clk 0:01:49]} 38. Nd6 {[%clk 0:01:04]}  Rf8 {[%clk 0:01:48]} 39. Kd3 {[%clk 0:01:03]}  Bc5 {[%clk 0:01:46]} 40. Nb7 {[%clk 0:01:03]}  Bd4 {[%clk 0:01:46]} 41. Rc7 {[%clk 0:01:00]}  Ra8 {[%clk 0:01:36]} 42. Nd6 {[%clk 0:00:59]}  Ra3+ {[%clk 0:01:26]} 43. Kc4 {[%clk 0:00:57]}  Rc3+ {[%clk 0:01:13]} 44. Kb4 {[%clk 0:00:56]}  c5+ {[%clk 0:01:08]} 45. Kb5 {[%clk 0:00:56]}  Rb3+ {[%clk 0:01:05]} 46. Kc4 {[%clk 0:00:51]}  Rb4+ {[%clk 0:00:59]} 47. Kd5 {[%clk 0:00:51]}  Be3 {[%clk 0:00:55]} 48. Nxf7 {[%clk 0:00:48]}  Rd4+ {[%clk 0:00:50]} 49. Kxe5 {[%clk 0:00:43]}  c4 {[%clk 0:00:41]} 50. Kf6 {[%clk 0:00:42]}  Bg5+ {[%clk 0:00:27]} 51. Kxg6 {[%clk 0:00:40]} 1-0


[Site "https://www.chess.com"]

[Event "Titled Tuesday Blitz August 3 2021"]
[White "Wei, Yi"]
[Black "Gokerkan, Cem Kaan"]
[WhiteFideId "8603405"]
[BlackFideId "6336760"]
[WhiteElo "2686"]
[BlackElo "2361"]
[Result "0-1"]
[Round "10"]
[TimeControl "180+1"]
[Date "2021.08.03"]
[WhiteClock "0:00:01"]
[BlackClock "0:00:03"]

1. d4 {[%clk 0:03:00]}  Nf6 {[%clk 0:02:59]} 2. c4 {[%clk 0:03:01]}  e6 {[%clk 0:03:00]} 3. g3 {[%clk 0:03:00]}  d5 {[%clk 0:03:00]} 4. Bg2 {[%clk 0:03:00]}  Be7 {[%clk 0:03:00]} 5. Nf3 {[%clk 0:03:00]}  O-O {[%clk 0:03:01]} 6. Qc2 {[%clk 0:02:58]}  c5 {[%clk 0:03:00]} 7. O-O {[%clk 0:02:53]}  cxd4 {[%clk 0:02:24]} 8. Nxd4 {[%clk 0:02:53]}  Nc6 {[%clk 0:02:23]} 9. Nxc6 {[%clk 0:02:53]}  bxc6 {[%clk 0:02:24]} 10. b3 {[%clk 0:02:49]}  a5 {[%clk 0:02:18]} 11. Nc3 {[%clk 0:02:37]}  Ba6 {[%clk 0:02:13]} 12. Rd1 {[%clk 0:02:37]}  Qc7 {[%clk 0:02:03]} 13. Na4 {[%clk 0:02:31]}  Rfd8 {[%clk 0:01:55]} 14. cxd5 {[%clk 0:02:20]}  Nxd5 {[%clk 0:01:55]} 15. Bb2 {[%clk 0:02:18]}  Nb4 {[%clk 0:01:27]} 16. Qe4 {[%clk 0:02:17]}  Rxd1+ {[%clk 0:01:27]} 17. Rxd1 {[%clk 0:02:17]}  Rd8 {[%clk 0:01:28]} 18. Rc1 {[%clk 0:01:40]}  Nxa2 {[%clk 0:01:19]} 19. Rxc6 {[%clk 0:01:38]}  Rd1+ {[%clk 0:01:11]} 20. Bf1 {[%clk 0:01:37]}  Qb7 {[%clk 0:00:53]} 21. f3 {[%clk 0:00:20]}  Bxe2 {[%clk 0:00:35]} 22. Qxe2 {[%clk 0:00:18]}  Rxf1+ {[%clk 0:00:35]} 23. Kxf1 {[%clk 0:00:14]}  Qxc6 {[%clk 0:00:36]} 24. Qe4 {[%clk 0:00:11]}  Qb5+ {[%clk 0:00:24]} 25. Qc4 {[%clk 0:00:11]}  Qxc4+ {[%clk 0:00:19]} 26. bxc4 {[%clk 0:00:11]}  Nb4 {[%clk 0:00:20]} 27. Ke2 {[%clk 0:00:10]}  f6 {[%clk 0:00:14]} 28. Ke3 {[%clk 0:00:09]}  Kf7 {[%clk 0:00:13]} 29. Bc3 {[%clk 0:00:07]}  Nc6 {[%clk 0:00:12]} 30. Kd3 {[%clk 0:00:05]}  e5 {[%clk 0:00:11]} 31. c5 {[%clk 0:00:05]}  Ke6 {[%clk 0:00:10]} 32. Kc4 {[%clk 0:00:06]}  f5 {[%clk 0:00:03]} 33. f4 {[%clk 0:00:06]}  exf4 {[%clk 0:00:03]} 34. gxf4 {[%clk 0:00:06]}  g5 {[%clk 0:00:03]} 35. fxg5 {[%clk 0:00:07]}  Bxg5 {[%clk 0:00:04]} 36. Kb5 {[%clk 0:00:07]}  Na7+ {[%clk 0:00:02]} 37. Kb6 {[%clk 0:00:06]}  Nc8+ {[%clk 0:00:01]} 38. Kb7 {[%clk 0:00:07]}  Ne7 {[%clk 0:00:02]} 39. c6 {[%clk 0:00:07]}  f4 {[%clk 0:00:02]} 40. c7 {[%clk 0:00:07]}  f3 {[%clk 0:00:03]} 41. Nc5+ {[%clk 0:00:04]}  Kd5 {[%clk 0:00:03]} 42. Nd3 {[%clk 0:00:01]}  Kc4 {[%clk 0:00:03]} 43. Ne5+ {[%clk 0:00:01]}  Kxc3 {[%clk 0:00:03]} 44. Nc6 {[%clk 0:00:01]}  Bf4 {[%clk 0:00:03]} 45. Nxe7 {[%clk 0:00:01]}  Bxc7 {[%clk 0:00:03]} 0-1


[Site "https://www.chess.com"]

[Event "Titled Tuesday Blitz August 3 2021"]
[White "Wilson, Elvin"]
[Black "Novikov, Evgenij"]
[WhiteFideId "2014874"]
[BlackFideId "4125380"]
[WhiteElo "2313"]
[BlackElo "2242"]
[Result "0-1"]
[Round "10"]
[TimeControl "180+1"]
[Date "2021.08.03"]
[WhiteClock "0:00:01"]
[BlackClock "0:00:07"]

1. c4 {[%clk 0:03:00]}  c6 {[%clk 0:02:57]} 2. g3 {[%clk 0:03:00]}  d6 {[%clk 0:02:50]} 3. Bg2 {[%clk 0:02:57]}  Nd7 {[%clk 0:02:48]} 4. Nc3 {[%clk 0:02:58]}  h6 {[%clk 0:02:47]} 5. e4 {[%clk 0:02:58]}  g5 {[%clk 0:02:47]} 6. Nge2 {[%clk 0:02:54]}  Ne5 {[%clk 0:02:42]} 7. d3 {[%clk 0:02:53]}  Bg7 {[%clk 0:02:35]} 8. h3 {[%clk 0:02:51]}  Ng6 {[%clk 0:02:28]} 9. Be3 {[%clk 0:02:47]}  Nf6 {[%clk 0:02:09]} 10. Qd2 {[%clk 0:02:45]}  a5 {[%clk 0:01:58]} 11. O-O-O {[%clk 0:02:39]}  a4 {[%clk 0:01:56]} 12. Rhg1 {[%clk 0:02:31]}  a3 {[%clk 0:01:51]} 13. b3 {[%clk 0:02:29]}  Qa5 {[%clk 0:01:49]} 14. d4 {[%clk 0:02:16]}  Nd7 {[%clk 0:01:39]} 15. f4 {[%clk 0:02:08]}  b5 {[%clk 0:01:27]} 16. cxb5 {[%clk 0:01:51]}  Bb7 {[%clk 0:01:12]} 17. bxc6 {[%clk 0:01:38]}  Bxc6 {[%clk 0:01:10]} 18. Kb1 {[%clk 0:01:36]}  Nb6 {[%clk 0:01:05]} 19. d5 {[%clk 0:01:15]}  Bb7 {[%clk 0:00:59]} 20. Bd4 {[%clk 0:01:14]}  f6 {[%clk 0:00:38]} 21. Qd3 {[%clk 0:00:56]}  Ba6 {[%clk 0:00:35]} 22. Qd2 {[%clk 0:00:51]}  Kf7 {[%clk 0:00:25]} 23. Bf3 {[%clk 0:00:33]}  Nc4 {[%clk 0:00:16]} 24. Qc1 {[%clk 0:00:27]}  h5 {[%clk 0:00:13]} 25. Ka1 {[%clk 0:00:16]}  Rab8 {[%clk 0:00:11]} 26. bxc4 {[%clk 0:00:13]}  Bxc4 {[%clk 0:00:10]} 27. Nb1 {[%clk 0:00:04]}  Rhc8 {[%clk 0:00:08]} 28. Bc3 {[%clk 0:00:02]}  Qb5 {[%clk 0:00:07]} 29. Nxa3 {[%clk 0:00:01]}  Qa6 {[%clk 0:00:07]} 0-1


[Site "https://www.chess.com"]

[Event "Titled Tuesday Blitz August 3 2021"]
[White "Yaran, Siar"]
[Black "Obolentseva, Alexandra"]
[WhiteFideId "6323006"]
[BlackFideId "24153648"]
[WhiteElo "1977"]
[BlackElo "2113"]
[Result "0-1"]
[Round "10"]
[TimeControl "180+1"]
[Date "2021.08.03"]
[WhiteClock "0:00:03"]
[BlackClock "0:01:20"]

1. e4 {[%clk 0:03:00]}  c5 {[%clk 0:02:55]} 2. Nf3 {[%clk 0:03:00]}  d6 {[%clk 0:02:55]} 3. d4 {[%clk 0:03:00]}  cxd4 {[%clk 0:02:56]} 4. Nxd4 {[%clk 0:03:01]}  Nf6 {[%clk 0:02:55]} 5. Nc3 {[%clk 0:03:02]}  a6 {[%clk 0:02:55]} 6. Bg5 {[%clk 0:03:01]}  e6 {[%clk 0:02:53]} 7. f4 {[%clk 0:03:01]}  Nc6 {[%clk 0:02:53]} 8. Qd2 {[%clk 0:02:22]}  Qb6 {[%clk 0:02:49]} 9. O-O-O {[%clk 0:02:21]}  Nxd4 {[%clk 0:02:48]} 10. Qxd4 {[%clk 0:02:22]}  Qxd4 {[%clk 0:02:48]} 11. Rxd4 {[%clk 0:02:23]}  Be7 {[%clk 0:02:49]} 12. Be2 {[%clk 0:02:20]}  Bd7 {[%clk 0:02:40]} 13. e5 {[%clk 0:01:47]}  dxe5 {[%clk 0:02:22]} 14. fxe5 {[%clk 0:01:48]}  Ng8 {[%clk 0:02:21]} 15. Be3 {[%clk 0:01:01]}  Bc6 {[%clk 0:02:18]} 16. Bf3 {[%clk 0:01:00]}  Bxf3 {[%clk 0:02:17]} 17. gxf3 {[%clk 0:01:01]}  Rd8 {[%clk 0:02:17]} 18. Rhd1 {[%clk 0:01:00]}  Rxd4 {[%clk 0:02:16]} 19. Rxd4 {[%clk 0:00:57]}  Bc5 {[%clk 0:02:12]} 20. Rd3 {[%clk 0:00:57]}  Bxe3+ {[%clk 0:02:11]} 21. Rxe3 {[%clk 0:00:58]}  Ne7 {[%clk 0:02:10]} 22. Ne4 {[%clk 0:00:58]}  O-O {[%clk 0:02:09]} 23. Nd6 {[%clk 0:00:55]}  b6 {[%clk 0:02:08]} 24. Kd2 {[%clk 0:00:50]}  Nd5 {[%clk 0:02:06]} 25. Re4 {[%clk 0:00:48]}  f6 {[%clk 0:02:01]} 26. c4 {[%clk 0:00:46]}  Nc7 {[%clk 0:02:00]} 27. Ke3 {[%clk 0:00:40]}  fxe5 {[%clk 0:01:55]} 28. Rxe5 {[%clk 0:00:41]}  Rd8 {[%clk 0:01:54]} 29. Ne4 {[%clk 0:00:34]}  Rd1 {[%clk 0:01:54]} 30. b4 {[%clk 0:00:33]}  Rb1 {[%clk 0:01:52]} 31. a3 {[%clk 0:00:23]}  Rb3+ {[%clk 0:01:52]} 32. Kf4 {[%clk 0:00:23]}  Rxa3 {[%clk 0:01:52]} 33. c5 {[%clk 0:00:23]}  b5 {[%clk 0:01:42]} 34. c6 {[%clk 0:00:21]}  Kf7 {[%clk 0:01:40]} 35. Nc5 {[%clk 0:00:20]}  Ke7 {[%clk 0:01:39]} 36. Re4 {[%clk 0:00:19]}  Nd5+ {[%clk 0:01:36]} 37. Ke5 {[%clk 0:00:17]}  Nc7 {[%clk 0:01:33]} 38. Rd4 {[%clk 0:00:17]}  Re3+ {[%clk 0:01:30]} 39. Kf4 {[%clk 0:00:17]}  e5+ {[%clk 0:01:29]} 40. Kxe3 {[%clk 0:00:17]}  exd4+ {[%clk 0:01:30]} 41. Kxd4 {[%clk 0:00:18]}  Kd6 {[%clk 0:01:31]} 42. Ne4+ {[%clk 0:00:17]}  Kxc6 {[%clk 0:01:32]} 43. Nc5 {[%clk 0:00:13]}  Kb6 {[%clk 0:01:31]} 44. Ke5 {[%clk 0:00:12]}  a5 {[%clk 0:01:30]} 45. Nd7+ {[%clk 0:00:05]}  Kc6 {[%clk 0:01:30]} 46. Nb8+ {[%clk 0:00:05]}  Kb7 {[%clk 0:01:30]} 47. Nd7 {[%clk 0:00:06]}  axb4 {[%clk 0:01:29]} 48. Kd6 {[%clk 0:00:06]}  Ne8+ {[%clk 0:01:28]} 49. Kc5 {[%clk 0:00:07]}  Kc7 {[%clk 0:01:26]} 50. Nf8 {[%clk 0:00:07]}  Nf6 {[%clk 0:01:24]} 51. Kxb4 {[%clk 0:00:07]}  Kd6 {[%clk 0:01:25]} 52. Kxb5 {[%clk 0:00:07]}  Ke7 {[%clk 0:01:25]} 53. Nxh7 {[%clk 0:00:06]}  Nxh7 {[%clk 0:01:26]} 54. Kc5 {[%clk 0:00:07]}  Kf6 {[%clk 0:01:26]} 55. Kd6 {[%clk 0:00:07]}  Kf5 {[%clk 0:01:26]} 56. Ke7 {[%clk 0:00:07]}  g5 {[%clk 0:01:26]} 57. Kf7 {[%clk 0:00:08]}  Nf6 {[%clk 0:01:27]} 58. Kg7 {[%clk 0:00:08]}  Nd7 {[%clk 0:01:22]} 59. Kh6 {[%clk 0:00:08]}  Ne5 {[%clk 0:01:22]} 60. Kh5 {[%clk 0:00:06]}  Nxf3 {[%clk 0:01:22]} 61. h3 {[%clk 0:00:06]}  Kf4 {[%clk 0:01:21]} 62. Kg6 {[%clk 0:00:03]}  Ng1 {[%clk 0:01:20]} 0-1


[Site "https://www.chess.com"]